fUSD/lending_fUSD_20260408
["ID","MTS","AMOUNT","RATE_DAILY","PERIOD"]
[420023891,1775622648106,-150.0,0.00013973,2]
[420023892,1775622648116,-150.0,0.00013973,2]
[420023893,1775622648127,-166.66,0.00013973,2]
[420023894,1775622648137,-20093.84505006,0.00013987,2]
[420023895,1775622648146,-2679.80180632,0.0001399,2]
[420023896,1775622648156,-190.9111,0.00014,2]
[420023897,1775622648166,-160.0,0.00014022,2]
[420023898,1775622648176,-160.0,0.0001404,3]
[420023899,1775622648185,-2800.0,0.00014082,2]
[420023900,1775622648195,-1100.0,0.00014082,2]
[420023901,1775622648205,-166.66,0.0001411,2]
[420023902,1775622648215,-507.0,0.00014162,2]
[420023903,1775622648225,-150.0,0.00014247,2]
[420023904,1775622648234,-150.0,0.00014247,2]
[420023905,1775622648244,-166.66,0.00014247,2]
[420023906,1775622648254,-172.70630045,0.00014247,2]
[420023907,1775622648265,-882.1111067,0.00014247,2]
[420023908,1775622648275,-1000.0,0.00014247,2]
[420023909,1775622648285,-1144.24089955,0.00014247,2]
[420023910,1775622648294,-1000.0,0.00014247,2]
[420023911,1775622648304,-1000.0,0.00014247,2]
[420023912,1775622648314,-1000.0,0.00014247,2]
[420023913,1775622648324,-763.74027783,0.00014247,2]
[420023914,1775622648335,-242.46089406,0.00014247,2]
[420023915,1775622648344,-1000.0,0.00014247,2]
[420023916,1775622648354,-1000.0,0.00014247,2]
[420023917,1775622648364,-1000.0,0.00014247,2]
[420023918,1775622648373,-1000.0,0.00014247,2]
[420023919,1775622648384,-8780.59847775,0.00014274,2]
[420023920,1775622648394,-343.96,0.00014283,2]
[420023921,1775622648403,-389.29,0.00014323,2]
[420023922,1775622648413,-2308.67,0.00014384,2]
[420023923,1775622648423,-166.66,0.00014384,2]
[420023924,1775622648433,-1461.6329815,0.00014437,2]
[420023925,1775622648443,-200.0,0.00014437,2]
[420023926,1775622648452,-201.93286099,0.00014437,2]
[420023927,1775622648462,-343.97682424,0.00014482,2]
[420023928,1775622648471,-150.0,0.0001449,2]
[420023929,1775622648481,-1037.0,0.00014495,5]
[420023930,1775622648491,-20093.84505006,0.00014518,2]
[420023931,1775622648500,-2000.0,0.00014581,2]
[420023932,1775622648510,-6703.71173397,0.00014663,2]
[420023933,1775622648520,-8780.59847775,0.00014755,2]
[420023934,1775622648531,-250.0,0.00014795,2]
[420023935,1775622648540,-1500.0,0.00014795,2]
[420023936,1775622648550,-1500.0,0.00014795,2]
[420023937,1775622648560,-1500.0,0.00014795,2]
[420023938,1775622648570,-1500.0,0.00014795,2]
[420023939,1775622648580,-1500.0,0.00014795,2]
[420023940,1775622648590,-1500.0,0.00014795,2]
[420023941,1775622648600,-1500.0,0.00014795,2]
[420023942,1775622648610,-1515.29028124,0.00014795,2]
[420023943,1775622648620,-386.0,0.00014896,2]
[420023944,1775622648629,-386.0,0.000149,2]
[420023945,1775622648640,-6022.0,0.00014928,2]
[420023946,1775622648652,-627.065,0.00014928,2]
[420023947,1775622648663,-386.0,0.00014953,2]
[420023948,1775622648673,-599.60298507,0.00014984,2]
[420023949,1775622648683,-646.65982734,0.00014984,2]
[420023950,1775622648693,-200.0,0.00014985,2]
[420023951,1775622648703,-209.40437684,0.00014985,2]
[420023952,1775622648713,-1348.0,0.00015,2]
[420023953,1775622648724,-20093.84505006,0.00015049,2]
[420023954,1775622648735,-786.02,0.00015068,2]
[420023955,1775622648745,-2308.67,0.00015068,2]
[420023956,1775622648756,-390.38,0.00015068,2]
[420023957,1775622648766,-985.91,0.00015108,2]
[420023958,1775622648777,-164.0,0.00015177,3]
[420023959,1775622648788,-507.0,0.00015224,3]
[420023960,1775622648797,-8780.59847775,0.00015237,2]
[420023961,1775622648808,-352.1573039,0.00015263,2]
[420023962,1775622648818,-215.3779,0.000153,2]
[420023963,1775622648827,-79364.77,0.000153,2]
[420023964,1775622648950,-386.0,0.00015337,2]
[420023965,1775622648960,-350.0,0.00015341,2]
[420023966,1775622648970,-766.01,0.00015342,2]
[420023967,1775622648980,-2000.0,0.00015342,2]
[420023968,1775622648989,-501.38361513,0.00015342,2]
[420023969,1775622648999,-503.63625007,0.00015342,2]
[420023970,1775622649009,-2000.0,0.00015342,2]
[420023971,1775622649019,-2002.28581045,0.00015342,2]
[420023972,1775622649029,-451.88193642,0.00015342,2]
[420023973,1775622649039,-2000.0,0.00015342,2]
[420023974,1775622649048,-155.49037491,0.00015358,2]
[420023975,1775622649058,-160.0,0.00015367,3]
[420023976,1775622649067,-386.0,0.00015368,2]
[420023977,1775622649076,-386.0,0.00015375,2]
[420023978,1775622649085,-987.75,0.00015382,2]
[420023979,1775622649095,-601.3927496,0.00015389,2]
[420023980,1775622649104,-176.8827394,0.00015389,2]
[420023981,1775622649114,-216.74964,0.00015399,2]
[420023982,1775622649123,-218.094531,0.00015399,2]
[420023983,1775622649132,-220.179618,0.00015399,2]
[420023984,1775622649142,-386.0,0.00015416,2]
[420023985,1775622649152,-1573.0,0.00015446,2]
[420023986,1775622649162,-2800.0,0.00015452,2]
[420023987,1775622649171,-1100.0,0.00015452,2]
[420023988,1775622649181,-1264.0,0.00015458,2]
[420023989,1775622649191,-277.201,0.00015458,2]
[420023990,1775622649200,-926.0,0.00015458,2]
[420023991,1775622649210,-1217.0,0.00015458,2]
[420023992,1775622649220,-2254.94,0.00015471,2]
[420023993,1775622649230,-5024.31,0.00015471,2]
[420023994,1775622649240,-376.07,0.00015471,2]
[420023995,1775622649250,-386.0,0.00015473,2]
[420023996,1775622649258,-500.0,0.00015476,2]
[420023997,1775622649266,-386.0,0.00015502,2]
[420023998,1775622649276,-201.2726407,0.00015533,2]
[420023999,1775622649286,-216.991796,0.00015533,2]
[420024000,1775622649295,-386.0,0.00015533,2]
[420024001,1775622649305,-215.39830433,0.00015542,2]
[420024002,1775622649315,-658.1,0.00015542,2]
[420024003,1775622649324,-113846.4586908,0.00015543,2]
[420024004,1775622649334,-2415.40296275,0.00015551,2]
[420024005,1775622649343,-500.0,0.00015564,2]
[420024006,1775622649353,-20093.84505006,0.0001558,2]
[420024007,1775622649362,-151.0,0.0001558,2]
[420024008,1775622649372,-153.885304,0.0001558,2]
[420024009,1775622649382,-151.0,0.0001558,2]
[420024010,1775622649392,-275.633001,0.0001558,2]
[420024011,1775622649402,-151.206448,0.0001558,2]
[420024012,1775622649412,-151.0,0.0001558,2]
[420024013,1775622649422,-151.0,0.0001558,2]
[420024014,1775622649432,-151.0,0.0001558,2]
[420024015,1775622649443,-151.0,0.0001558,2]
[420024016,1775622649452,-388.262627,0.0001558,2]
[420024017,1775622649462,-388.262627,0.0001558,2]
[420024018,1775622649471,-388.262627,0.0001558,2]
[420024019,1775622649481,-151.0,0.0001558,2]
[420024020,1775622649491,-388.262627,0.0001558,2]
[420024021,1775622649501,-151.0,0.0001558,2]
[420024022,1775622649511,-151.0,0.0001558,2]
[420024023,1775622649521,-175.533937,0.0001558,2]
[420024024,1775622649530,-175.533937,0.0001558,2]
[420024025,1775622649540,-151.0,0.0001558,2]
[420024026,1775622649550,-175.533937,0.0001558,2]
[420024027,1775622649560,-232.189434,0.0001558,2]
[420024028,1775622649569,-175.533937,0.0001558,2]
[420024029,1775622649579,-151.0,0.0001558,2]
[420024030,1775622649589,-232.189434,0.0001558,2]
[420024031,1775622649599,-151.0,0.0001558,2]
[420024032,1775622649609,-232.189434,0.0001558,2]
[420024033,1775622649618,-151.0,0.0001558,2]
[420024034,1775622649628,-232.189434,0.0001558,2]
[420024035,1775622649637,-151.0,0.0001558,2]
[420024036,1775622649647,-151.0,0.0001558,2]
[420024037,1775622649656,-386.0,0.00015627,2]
[420024038,1775622649666,-500.0,0.00015651,2]
[420024039,1775622649675,-745.74743216,0.0001568,2]
[420024040,1775622649684,-2812.0,0.0001568,2]
[420024041,1775622649694,-152.285605,0.0001568,2]
[420024042,1775622649701,-151.0,0.0001568,2]
[420024043,1775622649711,-151.0,0.0001568,2]
[420024044,1775622649720,-1092.69252953,0.0001568,2]
[420024045,1775622649730,-1002.99779444,0.0001568,2]
[420024046,1775622649739,-1033.35801569,0.0001568,2]
[420024047,1775622649749,-1135.12648285,0.0001568,2]
[420024048,1775622649759,-1067.39584774,0.0001568,2]
[420024049,1775622649768,-1071.82010611,0.0001568,2]
[420024050,1775622649778,-1746.85732091,0.0001568,2]
[420024051,1775622649787,-350.0,0.00015681,2]
[420024052,1775622649797,-402.56716046,0.00015691,2]
[420024053,1775622649807,-350.0,0.00015712,2]
[420024054,1775622649815,-1542.0,0.00015716,2]
[420024055,1775622649825,-350.0,0.00015717,2]
[420024056,1775622649834,-386.0,0.00015724,2]
[420024057,1775622649843,-386.0,0.00015729,2]
[420024058,1775622649852,-500.0,0.00015738,2]
[420024059,1775622649862,-2308.67,0.00015753,2]
[420024060,1775622649871,-173.02,0.00015757,2]
[420024061,1775622649881,-386.0,0.00015785,2]
[420024062,1775622649891,-152.393342,0.0001579,2]
[420024063,1775622649900,-151.0,0.0001579,2]
[420024064,1775622649910,-151.0,0.0001579,2]
[420024065,1775622649919,-151.0,0.0001579,2]
[420024066,1775622649929,-151.0,0.0001579,2]
[420024067,1775622649939,-151.0,0.0001579,2]
[420024068,1775622649949,-151.0,0.0001579,2]
[420024069,1775622649959,-151.0,0.0001579,2]
[420024070,1775622649969,-151.0,0.0001579,2]
[420024071,1775622649978,-151.0,0.0001579,2]
[420024072,1775622649988,-982.0,0.000158,5]
[420024073,1775622649998,-173.02,0.00015803,2]
[420024074,1775622650007,-500.0,0.00015808,2]
[420024075,1775622650018,-500.0,0.00015808,2]
[420024076,1775622650027,-396.4808442,0.00015808,2]
[420024077,1775622650036,-386.0,0.0001582,2]
[420024078,1775622650046,-500.0,0.00015825,2]
[420024079,1775622650055,-152.40359973,0.0001584,2]
[420024080,1775622650065,-2000.0,0.0001584,2]
[420024081,1775622650074,-2000.0,0.0001584,2]
[420024082,1775622650083,-402.56716046,0.00015846,2]
[420024083,1775622650094,-173.01350337,0.00015849,2]
[420024084,1775622650103,-2000.0,0.0001585,2]
[420024085,1775622650112,-162.4734,0.0001586,2]
[420024086,1775622650122,-162.4734,0.0001587,2]
[420024087,1775622650131,-500.0,0.00015872,2]
[420024088,1775622650141,-500.0,0.00015872,2]
[420024089,1775622650151,-500.0,0.00015872,2]
[420024090,1775622650160,-200.0,0.00015872,2]
[420024091,1775622650169,-162.4733,0.0001588,2]
[420024092,1775622650178,-386.0,0.00015885,2]
[420024093,1775622650188,-200.0,0.00015885,2]
[420024094,1775622650197,-200.0,0.00015885,2]
[420024095,1775622650207,-200.0,0.00015885,2]
[420024096,1775622650216,-200.0,0.00015885,2]
[420024097,1775622650225,-200.0,0.00015885,2]
[420024098,1775622650234,-200.0,0.00015885,2]
[420024099,1775622650244,-200.0,0.00015885,2]
[420024100,1775622650254,-200.0,0.00015885,2]
[420024101,1775622650264,-237.0,0.00015885,2]
[420024102,1775622650273,-151.0,0.0001589,2]
[420024103,1775622650283,-151.0,0.0001589,2]
[420024104,1775622650293,-500.0,0.0001589,2]
[420024105,1775622650303,-500.0,0.0001589,2]
[420024106,1775622650312,-177.05503597,0.0001589,2]
[420024107,1775622650322,-151.0,0.0001589,2]
[420024108,1775622650332,-151.0,0.0001589,2]
[420024109,1775622650342,-151.0,0.0001589,2]
[420024110,1775622650351,-151.0,0.0001589,2]
[420024111,1775622650361,-151.0,0.0001589,2]
[420024112,1775622650371,-151.0,0.0001589,2]
[420024113,1775622650380,-151.0,0.0001589,2]
[420024114,1775622650390,-151.0,0.0001589,2]
[420024115,1775622650400,-187.069104,0.0001589,2]
[420024116,1775622650409,-151.0,0.0001589,2]
[420024117,1775622650419,-232.153947,0.0001589,2]
[420024118,1775622650429,-152.546955,0.0001589,2]
[420024119,1775622650439,-2500.0,0.0001589,2]
[420024120,1775622650449,-1346.46562521,0.0001589,2]
[420024121,1775622650458,-2500.0,0.0001589,2]
[420024122,1775622650467,-386.0,0.00015895,2]
[420024123,1775622650476,-151.0,0.000159,2]
[420024124,1775622650486,-151.0,0.000159,2]
[420024125,1775622650495,-151.0,0.000159,2]
[420024126,1775622650505,-151.0,0.000159,2]
[420024127,1775622650514,-226.261666,0.000159,2]
[420024128,1775622650524,-1000.0,0.000159,2]
[420024129,1775622650533,-226.261666,0.000159,2]
[420024130,1775622650543,-226.261666,0.000159,2]
[420024131,1775622650553,-226.261666,0.000159,2]
[420024132,1775622650562,-151.0,0.000159,2]
[420024133,1775622650572,-151.575895,0.000159,2]
[420024134,1775622650582,-151.0,0.000159,2]
[420024135,1775622650592,-151.0,0.000159,2]
[420024136,1775622650601,-151.0,0.000159,2]
[420024137,1775622650611,-151.0,0.000159,2]
[420024138,1775622650620,-151.0,0.000159,2]
[420024139,1775622650630,-151.0,0.000159,2]
[420024140,1775622650639,-319.450739,0.000159,2]
[420024141,1775622650648,-319.450739,0.000159,2]
[420024142,1775622650658,-319.450739,0.000159,2]
[420024143,1775622650667,-319.450739,0.000159,2]
[420024144,1775622650677,-627.0,0.000159,2]
[420024145,1775622650686,-878.0,0.000159,2]
[420024146,1775622650695,-400.0,0.000159,5]
[420024147,1775622650705,-184.01842302,0.000159,2]
[420024148,1775622650716,-612.0,0.000159,2]
[420024149,1775622650726,-500.0,0.00015913,2]
[420024150,1775622650736,-1000.0,0.00015944,2]
[420024151,1775622650745,-151.0,0.00015973,2]
[420024152,1775622650753,-151.0,0.00015973,2]
[420024153,1775622650763,-151.0,0.00015973,2]
[420024154,1775622650772,-151.0,0.00015973,2]
[420024155,1775622650782,-151.0,0.00015973,2]
[420024156,1775622650790,-151.0,0.00015973,2]
[420024157,1775622650799,-151.0,0.00015973,2]
[420024158,1775622650808,-274.91145032,0.00015973,2]
[420024159,1775622650818,-3464.0,0.00015973,2]
[420024160,1775622650828,-5800.0,0.00015992,2]
[420024161,1775622650837,-155.355,0.00015999,2]
[420024162,1775622650847,-658.1,0.00015999,2]
[420024163,1775622650856,-658.1,0.00015999,2]
[420024164,1775622650865,-658.1,0.00015999,2]
[420024165,1775622650874,-658.1,0.00015999,2]
[420024166,1775622650884,-658.2028036,0.00015999,2]
[420024167,1775622650894,-415540.55440492,0.00016,2]
[420024168,1775622651532,-7161.34656143,0.00016,2]
[420024169,1775622651543,-920.37560574,0.00016,2]
[420024170,1775622651830,-365.4415144,0.0001074,2]
[420024171,1775622651840,-109.98731508,0.000108,2]
[420024172,1775622651860,-58.10132006,0.000108,2]
[420024173,1775622651870,-365.4415144,0.00010885,2]
[420024174,1775622651880,-1000.0,0.00013699,2]
[420024175,1775622651890,-2865.24,0.000137,2]
[420024176,1775622651899,-1053.585,0.00014933,2]
[420024177,1775622651909,-365.4415144,0.0001599,2]
[420024178,1775622651919,-773901.70929321,0.00016,2]
[420024179,1775622651929,-200.0,0.00016,2]
[420024180,1775622651938,-200.0,0.00016,2]
[420024181,1775622651948,-5800.0,0.00016,2]
[420024182,1775622651959,-151.0,0.00016,2]
[420024183,1775622651968,-202.615524,0.00016,2]
[420024184,1775622651977,-257.246826,0.00016,2]
[420024185,1775622651987,-152.416754,0.00016,2]
[420024186,1775622651997,-200.34394,0.00016,2]
[420024187,1775622652007,-200.0,0.00016,2]
[420024188,1775622652016,-151.0,0.00016,2]
[420024189,1775622652025,-151.0,0.00016,2]
[420024190,1775622652035,-459.18897447,0.00016,2]
[420024191,1775622652044,-174.943365,0.00016,2]
[420024192,1775622652054,-151.0,0.00016,2]
[420024193,1775622652063,-151.0,0.00016,2]
[420024194,1775622652072,-151.0,0.00016,2]
[420024195,1775622652081,-151.0,0.00016,2]
[420024196,1775622652091,-151.0,0.00016,2]
[420024197,1775622652100,-151.0,0.00016,2]
[420024198,1775622652110,-151.0,0.00016,2]
[420024199,1775622652120,-151.0,0.00016,2]
[420024200,1775622652129,-299.611539,0.00016,2]
[420024201,1775622652139,-151.0,0.00016,2]
[420024202,1775622652148,-151.0,0.00016,2]
[420024203,1775622652157,-151.0,0.00016,2]
[420024204,1775622652167,-151.0,0.00016,2]
[420024205,1775622652177,-200.0,0.00016,2]
[420024206,1775622652186,-500.0,0.00016,2]
[420024207,1775622652196,-150.0,0.00016,2]
[420024208,1775622652206,-151.0,0.00016,2]
[420024209,1775622652215,-151.0,0.00016,2]
[420024210,1775622652225,-151.0,0.00016,2]
[420024211,1775622652234,-226.261666,0.00016,2]
[420024212,1775622652244,-500.67081663,0.00016,2]
[420024213,1775622652253,-500.67081663,0.00016,2]
[420024214,1775622652263,-226.261666,0.00016,2]
[420024215,1775622652273,-226.261666,0.00016,2]
[420024216,1775622652283,-226.261666,0.00016,2]
[420024217,1775622652292,-152.58185,0.00016,2]
[420024218,1775622652304,-151.0,0.00016,2]
[420024219,1775622652313,-151.0,0.00016,2]
[420024220,1775622652323,-151.0,0.00016,2]
[420024221,1775622652333,-151.0,0.00016,2]
[420024222,1775622652343,-151.0,0.00016,2]
[420024223,1775622652353,-151.0,0.00016,2]
[420024224,1775622652363,-319.450739,0.00016,2]
[420024225,1775622652373,-900.0,0.00016,2]
[420024226,1775622652381,-319.450739,0.00016,2]
[420024227,1775622652390,-900.0,0.00016,2]
[420024228,1775622652400,-900.0,0.00016,2]
[420024229,1775622652410,-900.0,0.00016,2]
[420024230,1775622652420,-900.0,0.00016,2]
[420024231,1775622652430,-319.450739,0.00016,2]
[420024232,1775622652439,-900.0,0.00016,2]
[420024233,1775622652449,-900.0,0.00016,2]
[420024234,1775622652458,-319.450739,0.00016,2]
[420024235,1775622652467,-900.0,0.00016,2]
[420024236,1775622652476,-680.691086,0.00016,2]
[420024237,1775622652486,-900.0,0.00016,2]
[420024238,1775622652495,-511.0,0.00016,2]
[420024239,1775622652505,-680.691086,0.00016,2]
[420024240,1775622652515,-151.0,0.00016,2]
[420024241,1775622652524,-680.691086,0.00016,2]
[420024242,1775622652533,-1436.269995,0.00016,2]
[420024243,1775622652543,-151.0,0.00016,2]
[420024244,1775622652553,-680.691086,0.00016,2]
[420024245,1775622652562,-1436.269995,0.00016,2]
[420024246,1775622652572,-218.181893,0.00016,2]
[420024247,1775622652582,-1436.269995,0.00016,2]
[420024248,1775622652591,-151.0,0.00016,2]
[420024249,1775622652601,-1436.269995,0.00016,2]
[420024250,1775622652610,-151.0,0.00016,2]
[420024251,1775622652621,-153.180645,0.00016,2]
[420024252,1775622652631,-153.180645,0.00016,2]
[420024253,1775622652640,-153.180645,0.00016,2]
[420024254,1775622652650,-151.0,0.00016,2]
[420024255,1775622652660,-153.180645,0.00016,2]
[420024256,1775622652670,-151.0,0.00016,2]
[420024257,1775622652680,-151.0,0.00016,2]
[420024258,1775622652690,-151.0,0.00016,2]
[420024259,1775622652699,-2000.0,0.00016,2]
[420024260,1775622652709,-2000.0,0.00016,2]
[420024261,1775622652719,-2000.0,0.00016,2]
[420024262,1775622652729,-153.242235,0.00016,2]
[420024263,1775622652738,-153.242235,0.00016,2]
[420024264,1775622652748,-151.0,0.00016,2]
[420024265,1775622652757,-153.242235,0.00016,2]
[420024266,1775622652767,-153.242235,0.00016,2]
[420024267,1775622652776,-151.0,0.00016,2]
[420024268,1775622652787,-151.0,0.00016,2]
[420024269,1775622652797,-151.0,0.00016,2]
[420024270,1775622652807,-151.0,0.00016,2]
[420024271,1775622652817,-151.0,0.00016,2]
[420024272,1775622652826,-151.0,0.00016,2]
[420024273,1775622652836,-235.282447,0.00016,2]
[420024274,1775622652845,-151.0,0.00016,2]
[420024275,1775622652855,-151.0,0.00016,2]
[420024276,1775622652864,-151.0,0.00016,2]
[420024277,1775622652874,-151.0,0.00016,2]
[420024278,1775622652884,-151.0,0.00016,2]
[420024279,1775622652893,-151.0,0.00016,2]
[420024280,1775622652902,-151.0,0.00016,2]
[420024281,1775622652912,-151.0,0.00016,2]
[420024282,1775622652921,-151.0,0.00016,2]
[420024283,1775622652931,-151.0,0.00016,2]
[420024284,1775622652940,-151.0,0.00016,2]
[420024285,1775622652949,-151.0,0.00016,2]
[420024286,1775622652959,-151.0,0.00016,2]
[420024287,1775622652968,-151.0,0.00016,2]
[420024288,1775622652977,-151.0,0.00016,2]
[420024289,1775622652987,-151.0,0.00016,2]
[420024290,1775622652998,-151.0,0.00016,2]
[420024291,1775622653008,-1783.253125,0.00016,2]
[420024292,1775622653017,-1783.253125,0.00016,2]
[420024293,1775622653026,-1783.253125,0.00016,2]
[420024294,1775622653036,-1783.253125,0.00016,2]
[420024295,1775622653046,-151.0,0.00016,2]
[420024296,1775622653055,-151.0,0.00016,2]
[420024297,1775622653065,-153.51936,0.00016,2]
[420024298,1775622653074,-151.0,0.00016,2]
[420024299,1775622653083,-333.804281,0.00016,2]
[420024300,1775622653093,-151.0,0.00016,2]
[420024301,1775622653103,-151.0,0.00016,2]
[420024302,1775622653112,-333.804281,0.00016,2]
[420024303,1775622653121,-151.0,0.00016,2]
[420024304,1775622653130,-151.0,0.00016,2]
[420024305,1775622653139,-333.804281,0.00016,2]
[420024306,1775622653149,-151.0,0.00016,2]
[420024307,1775622653158,-257.70676,0.00016,2]
[420024308,1775622653168,-333.804281,0.00016,2]
[420024309,1775622653177,-151.0,0.00016,2]
[420024310,1775622653186,-151.0,0.00016,2]
[420024311,1775622653196,-257.70676,0.00016,2]
[420024312,1775622653205,-151.0,0.00016,2]
[420024313,1775622653215,-257.70676,0.00016,2]
[420024314,1775622653224,-151.0,0.00016,2]
[420024315,1775622653233,-151.0,0.00016,2]
[420024316,1775622653243,-257.70676,0.00016,2]
[420024317,1775622653253,-151.0,0.00016,2]
[420024318,1775622653262,-151.0,0.00016,2]
[420024319,1775622653271,-151.0,0.00016,2]
[420024320,1775622653279,-151.0,0.00016,2]
[420024321,1775622653288,-151.0,0.00016,2]
[420024322,1775622653297,-151.0,0.00016,2]
[420024323,1775622653306,-388.262627,0.00016,2]
[420024324,1775622653315,-388.262627,0.00016,2]
[420024325,1775622653325,-388.262627,0.00016,2]
[420024326,1775622653335,-151.0,0.00016,2]
[420024327,1775622653345,-388.262627,0.00016,2]
[420024328,1775622653355,-151.0,0.00016,2]
[420024329,1775622653364,-151.0,0.00016,2]
[420024330,1775622653374,-200.0,0.00016,2]
[420024331,1775622653384,-175.533937,0.00016,2]
[420024332,1775622653395,-175.533937,0.00016,2]
[420024333,1775622653406,-151.0,0.00016,2]
[420024334,1775622653416,-175.533937,0.00016,2]
[420024335,1775622653427,-232.189434,0.00016,2]
[420024336,1775622653437,-175.533937,0.00016,2]
[420024337,1775622653448,-151.0,0.00016,2]
[420024338,1775622653458,-232.189434,0.00016,2]
[420024339,1775622653468,-151.0,0.00016,2]
[420024340,1775622653478,-151.0,0.00016,2]
[420024341,1775622653488,-232.189434,0.00016,2]
[420024342,1775622653498,-232.189434,0.00016,2]
[420024343,1775622653508,-151.0,0.00016,2]
[420024344,1775622653519,-151.0,0.00016,2]
[420024345,1775622653529,-228.680597,0.00016,2]
[420024346,1775622653539,-151.0,0.00016,2]
[420024347,1775622653550,-151.0,0.00016,2]
[420024348,1775622653559,-151.0,0.00016,2]
[420024349,1775622653570,-151.0,0.00016,2]
[420024350,1775622653580,-151.0,0.00016,2]
[420024351,1775622653589,-182.805074,0.00016,2]
[420024352,1775622653599,-151.0,0.00016,2]
[420024353,1775622653610,-151.0,0.00016,2]
[420024354,1775622653621,-2000.0,0.00016,2]
[420024355,1775622653631,-402.56716046,0.00016002,2]
[420024356,1775622653641,-153.0,0.0001603,3]
[420024357,1775622653651,-2161.0,0.0001605,2]
[420024358,1775622653662,-408.98159675,0.00016084,2]
[420024359,1775622653672,-386.0,0.00016084,2]
[420024360,1775622653681,-500.0,0.000161,2]
[420024361,1775622653691,-500.0,0.000161,2]
[420024362,1775622653700,-500.0,0.000161,2]
[420024363,1775622653710,-493.4709058,0.000161,2]
[420024364,1775622653720,-2789.24,0.00016116,2]
[420024365,1775622653939,-9999.99,0.00016116,2]
[420024366,1775622653950,-2812.0,0.00016153,2]
[420024367,1775622653959,-386.0,0.00016156,2]
[420024368,1775622653969,-200.0,0.0001616,2]
[420024369,1775622653978,-200.0,0.0001616,2]
[420024370,1775622653987,-200.0,0.0001616,2]
[420024371,1775622653997,-200.0,0.0001616,2]
[420024372,1775622654007,-386.0,0.00016201,2]
[420024373,1775622654017,-1773.0,0.00016225,2]
[420024374,1775622654027,-1773.0,0.00016237,2]
[420024375,1775622654036,-1150.26588596,0.00016267,2]
[420024376,1775622654047,-4000.0,0.00016282,2]
[420024377,1775622654057,-507.0,0.00016286,4]
[420024378,1775622654067,-386.0,0.00016292,2]
[420024379,1775622654077,-200.0,0.00016322,2]
[420024380,1775622654087,-200.0,0.00016322,2]
[420024381,1775622654097,-200.0,0.00016322,2]
[420024382,1775622654106,-200.0,0.00016322,2]
[420024383,1775622654115,-386.0,0.00016347,2]
[420024384,1775622654125,-386.0,0.00016374,2]
[420024385,1775622654134,-763.67,0.00016438,2]
[420024386,1775622654144,-912.11,0.00016438,2]
[420024387,1775622654154,-250.0,0.00016438,2]
[420024388,1775622654162,-229.14,0.00016438,2]
[420024389,1775622654171,-2308.67,0.00016438,2]
[420024390,1775622654181,-500.0,0.00016438,2]